bitfinex-derivatives/quotes_BTCF0:USTF0_20250503
["timestamp","ask_amount","ask_price","bid_price","bid_amount"]
[1746267704477,0.54270504,96246.0,96245.0,2.069851]
[1746267704677,0.57390504,96246.0,96245.0,2.069851]
[1746267705478,0.60530504,96246.0,96245.0,2.069851]
[1746267705887,0.81605384,96246.0,96245.0,2.069851]
[1746267706383,0.81605384,96246.0,96245.0,2.037551]
[1746267709488,0.47303695,96246.0,96245.0,2.037551]
[1746267709791,0.81605384,96246.0,96245.0,2.037551]
[1746267713292,0.81605384,96246.0,96245.0,2.759151]
[1746267713489,0.60830504,96246.0,96245.0,2.759151]
[1746267713992,0.81605384,96246.0,96245.0,2.759151]
[1746267716692,0.60830504,96246.0,96245.0,2.759151]
[1746267719395,0.41361689,96246.0,96245.0,2.759151]
[1746267719586,0.0706,96246.0,96245.0,2.759151]
[1746267721399,0.2783488,96246.0,96245.0,2.759151]
[1746267721590,0.2783488,96246.0,96245.0,2.727351]
[1746267721997,0.2783488,96246.0,96245.0,2.759451]
[1746267742812,0.62136569,96246.0,96245.0,2.759451]
[1746267743010,0.62136569,96246.0,96245.0,2.91838605]
[1746267751617,0.62136569,96246.0,96245.0,2.73838605]
[1746267752106,0.62136569,96246.0,96245.0,2.76838605]
[1746267752619,0.81605384,96246.0,96245.0,1.20628605]
[1746267754417,0.81605384,96246.0,96245.0,1.21628605]
[1746267754617,0.81605384,96246.0,96245.0,1.20628605]
[1746267755411,0.81605384,96246.0,96245.0,1.047351]
[1746267755612,0.81605384,96246.0,96245.0,2.547351]
[1746267756618,0.81605384,96246.0,96245.0,2.557351]
[1746267756823,0.81605384,96246.0,96245.0,2.547351]
[1746267757019,0.82666654,96246.0,96245.0,2.547351]
[1746267757623,0.81605384,96246.0,96245.0,2.557351]
[1746267757923,0.81605384,96246.0,96245.0,2.547351]
[1746267758825,0.81605384,96246.0,96245.0,2.557351]
[1746267759124,0.81605384,96246.0,96245.0,2.547351]
[1746267761923,0.81605384,96246.0,96245.0,1.835751]
[1746267762120,0.81605384,96246.0,96245.0,2.196551]
[1746267762425,0.81605384,96246.0,96245.0,2.186551]
[1746267762620,0.81605384,96246.0,96245.0,2.011]
[1746267762831,0.53770504,96239.0,96231.0,0.3608]
[1746267763131,0.74548194,96233.0,96231.0,0.3608]
[1746267763521,0.84939795,96233.0,96231.0,0.3608]
[1746267763715,0.2077791,96232.0,96231.0,0.57246792]
[1746267763919,0.91240015,96232.0,96231.0,0.57246792]
[1746267764128,1.03040015,96232.0,96231.0,0.57246792]
[1746267765234,0.91240015,96232.0,96231.0,0.57246792]
[1746267767541,0.91340015,96232.0,96231.0,0.57246792]
[1746267768035,0.80948414,96232.0,96231.0,0.57246792]
[1746267768324,0.81048414,96232.0,96231.0,0.57246792]
[1746267768818,0.80948414,96232.0,96231.0,0.57246792]
[1746267769022,0.81048414,96232.0,96231.0,0.3608]
[1746267769517,0.2077877,96228.0,96227.0,0.2077894]
[1746267769721,0.74549274,96228.0,96227.0,0.5685894]
[1746267770327,0.84169274,96228.0,96227.0,0.5685894]
[1746267772632,0.49867585,96228.0,96227.0,0.5685894]
[1746267772825,0.84169274,96228.0,96227.0,0.5685894]
[1746267780143,0.84169274,96228.0,96227.0,0.6865894]
[1746267781237,0.84169274,96228.0,96227.0,0.6009894]
[1746267782649,0.84169274,96228.0,96227.0,0.6009899]
[1746267783143,0.84169274,96228.0,96227.0,0.7189899]
[1746267788240,0.84169274,96228.0,96227.0,0.7498899]
[1746267790467,0.84169274,96228.0,96227.0,0.3890899]
[1746267790662,0.84169274,96228.0,96227.0,0.7498899]
[1746267800571,0.80949274,96228.0,96227.0,0.7498899]
[1746267800772,0.77829274,96228.0,96227.0,0.7498899]
[1746267801468,0.77829274,96228.0,96227.0,0.8098899]
[1746267804678,0.2077877,96228.0,96227.0,0.8098899]
[1746267804880,0.2077832,96231.0,96230.0,0.2597245]
[1746267805177,0.2077832,96231.0,96230.0,0.5695245]
[1746267805377,0.2077832,96231.0,96230.0,2.0695245]
[1746267805977,0.2087832,96231.0,96230.0,2.0175791]
[1746267809672,0.2087832,96231.0,96230.0,2.3783791]
[1746267822993,0.2388832,96231.0,96230.0,2.2483791]
[1746267830199,0.2388832,96231.0,96230.0,2.2883791]
[1746267840699,0.58190009,96231.0,96230.0,2.2883791]
[1746267841407,0.58190009,96231.0,96230.0,2.2983791]
[1746267842614,0.58190009,96231.0,96230.0,2.2483791]
[1746267842912,0.58190009,96231.0,96230.0,2.2983791]
[1746267843113,0.58190009,96231.0,96230.0,2.2483791]
[1746267843307,0.58190009,96231.0,96230.0,2.2983791]
[1746267843813,0.58190009,96231.0,96230.0,2.3083791]
[1746267844014,0.58190009,96231.0,96230.0,2.2483791]
[1746267844315,0.58190009,96231.0,96230.0,2.2983791]
[1746267844513,0.61420009,96231.0,96230.0,2.3083791]
[1746267844714,0.61420009,96231.0,96230.0,2.2483791]
[1746267844913,0.61420009,96231.0,96230.0,2.3083791]
[1746267848324,0.61420009,96231.0,96230.0,2.2483791]
[1746267848622,0.61420009,96231.0,96230.0,2.2983791]
[1746267849122,0.61420009,96231.0,96230.0,2.2483791]
[1746267849322,0.61420009,96231.0,96230.0,1.9375791]
[1746267849619,0.61420009,96231.0,96230.0,2.2983791]
[1746267851218,0.61420009,96231.0,96230.0,2.2483791]
[1746267851424,0.61420009,96231.0,96230.0,2.2983791]
[1746267852029,0.61420009,96231.0,96230.0,2.2483791]
[1746267852216,0.61420009,96231.0,96230.0,2.2983791]
[1746267852829,0.61420009,96231.0,96230.0,2.2483791]
[1746267853025,0.61420009,96231.0,96230.0,2.2983791]
[1746267853625,0.61420009,96231.0,96230.0,2.2483791]
[1746267853926,0.61420009,96231.0,96230.0,2.2983791]
[1746267855422,0.80888824,96231.0,96230.0,2.2983791]
[1746267858417,0.80888824,96231.0,96230.0,2.2483791]
[1746267858617,0.80888824,96231.0,96230.0,2.2983791]
[1746267859028,0.80888824,96231.0,96230.0,2.2483791]
[1746267859326,0.80888824,96231.0,96230.0,2.2983791]
[1746267859825,0.80888824,96231.0,96230.0,2.3083791]
[1746267860128,0.80888824,96231.0,96230.0,2.2483791]
[1746267860624,0.80888824,96231.0,96230.0,2.2983791]
[1746267861420,0.80888824,96231.0,96230.0,1.9375791]
[1746267861621,0.80888824,96231.0,96230.0,2.2983791]
[1746267868230,0.77878824,96231.0,96230.0,2.2983791]
[1746267870131,0.2410832,96231.0,96230.0,2.2983791]
[1746267871631,0.58410009,96231.0,96230.0,2.2983791]
[1746267872630,0.2410832,96231.0,96230.0,2.2983791]
[1746267876645,0.2410832,96231.0,96230.0,2.2483791]
[1746267876834,0.2410832,96231.0,96230.0,2.3183791]
[1746267883446,0.2410832,96231.0,96230.0,2.2483791]
[1746267883646,0.2410832,96231.0,96230.0,2.3083791]
[1746267887650,0.58410009,96231.0,96230.0,2.3083791]
[1746267902356,0.77878824,96231.0,96230.0,2.3083791]
[1746267904349,0.77878824,96231.0,96230.0,1.9475791]
[1746267904555,0.77878824,96231.0,96230.0,2.6691791]
[1746267905060,0.77878824,96231.0,96230.0,2.4614]
[1746267905254,0.98878824,96231.0,96230.0,0.8396]
[1746267905558,0.2078093,96218.0,96208.0,0.3608]
[1746267905861,0.74551434,96218.0,96208.0,0.3608]
[1746267906062,0.84944634,96218.0,96208.0,0.3608]
[1746267906256,0.97765822,96218.0,96208.0,0.3608]
[1746267906662,0.97765822,96218.0,96216.0,0.21166792]
[1746267906858,0.97765822,96218.0,96217.0,0.00555897]
[1746267908858,0.87372622,96218.0,96217.0,0.00555897]
[1746267909050,0.97765822,96218.0,96217.0,0.00555897]
[1746267910257,0.2078244,96211.0,96208.0,0.26483408]
[1746267910463,0.74552944,96211.0,96208.0,0.26483408]
[1746267910965,0.84946944,96211.0,96208.0,0.26483408]
[1746267911161,1.03026944,96211.0,96208.0,0.26483408]
[1746267911462,1.03026944,96211.0,96200.0,0.3178009]
[1746267911463,1.03026944,96211.0,96210.0,0.00555913]
[1746267911864,1.03026944,96211.0,96210.0,0.00855913]
[1746267912061,0.92632944,96211.0,96210.0,0.00855913]
[1746267912363,0.80832944,96211.0,96210.0,0.00855913]
[1746267931096,0.80832944,96211.0,96210.0,0.007]
[1746267934190,0.80832944,96211.0,96210.0,0.0392]
[1746267937705,0.91402576,96211.0,96210.0,0.0392]
[1746267941909,0.80832944,96211.0,96210.0,0.0392]
[1746267948602,0.0519609,96203.0,96185.0,0.11724946]
[1746267948909,0.2598129,96199.0,96198.0,0.0313]
[1746267950202,0.2598129,96199.0,96198.0,0.1543]
[1746267952416,0.2608129,96199.0,96198.0,0.189]
[1746267958716,0.2925129,96199.0,96198.0,0.189]
[1746267978025,0.21042784,96223.0,96206.0,0.2078352]
[1746267978326,0.2078099,96218.0,96214.0,0.2078179]
[1746267978520,0.2078126,96217.0,96214.0,0.7186179]
[1746267978709,0.2078099,96218.0,96214.0,0.7186179]
[1746267978915,0.2078127,96217.0,96214.0,0.7186179]
[1746267979220,0.2078084,96219.0,96214.0,0.9017179]
[1746267979425,0.0519508,96221.0,96214.0,0.9017179]
[1746267979721,0.2078119,96217.0,96214.0,0.9017179]
[1746267980124,0.2078139,96216.0,96214.0,0.9017179]
[1746267980326,0.0332,96222.0,96214.0,0.9017179]
[1746267980526,0.15847824,96223.0,96222.0,0.2078007]
[1746267980727,0.15847824,96223.0,96222.0,0.65910996]
[1746267980917,0.2077985,96223.0,96222.0,0.6486007]
[1746267981116,0.2077985,96223.0,96222.0,0.7666007]
[1746267981523,0.2077985,96223.0,96222.0,0.8297007]
[1746267982927,0.2087985,96223.0,96222.0,0.8297007]
[1746267987632,0.2087985,96223.0,96222.0,1.1905007]
[1746267989426,0.74650354,96223.0,96222.0,0.4788]
[1746267990028,0.77880354,96223.0,96222.0,0.4788]
[1746267990229,0.77880354,96223.0,96222.0,0.3608]
[1746267997434,0.77880354,96223.0,96210.0,1.5]
[1746267997435,0.2078244,96211.0,96210.0,1.5]
[1746267997639,0.2078439,96202.0,96201.0,0.0659]
[1746267998230,0.2078439,96202.0,96201.0,0.118]
[1746267998630,0.2058439,96202.0,96201.0,0.118]
[1746267999643,0.2038439,96202.0,96201.0,0.118]
[1746268000247,0.2038439,96202.0,96201.0,0.122]
[1746268000646,0.2038439,96202.0,96201.0,0.125]
[1746268001146,0.2038439,96202.0,96201.0,0.332846]
[1746268002145,0.2038439,96202.0,96201.0,0.693646]
[1746268004252,0.2038439,96202.0,96201.0,0.773646]
[1746268004653,0.2038439,96202.0,96201.0,0.693646]
[1746268004845,0.2038439,96202.0,96201.0,0.724646]
[1746268005154,0.2038439,96202.0,96201.0,0.834646]
[1746268006051,0.2038439,96202.0,96201.0,2.334646]
[1746268007949,0.2038439,96202.0,96201.0,2.0168]
[1746268008151,0.2758439,96202.0,96201.0,1.9858]
[1746268008851,0.2758439,96202.0,96201.0,0.4858]
[1746268009462,0.81354894,96202.0,96201.0,0.4858]
[1746268010064,0.81354894,96202.0,96201.0,0.3678]
[1746268013063,0.82416117,96202.0,96201.0,0.3678]
[1746268026275,0.82416117,96202.0,96201.0,0.4858]
[1746268027382,0.82416117,96202.0,96201.0,0.3678]
[1746268028682,0.82416117,96202.0,96201.0,0.007]
[1746268037987,0.2078568,96196.0,96195.0,0.0313]
[1746268038188,0.88556184,96196.0,96195.0,0.0313]
[1746268038391,0.54254495,96196.0,96195.0,0.0313]
[1746268038785,0.60624495,96196.0,96195.0,0.0313]
[1746268039187,0.60724495,96196.0,96195.0,0.1543]
[1746268039389,0.60724495,96196.0,96195.0,0.1583]
[1746268041189,0.57474495,96196.0,96195.0,0.1583]
[1746268048683,0.91776184,96196.0,96195.0,0.1583]
[1746268055991,0.79776184,96196.0,96195.0,0.1583]
[1746268064305,0.79776184,96196.0,96195.0,0.127]
[1746268064702,0.45474495,96196.0,96195.0,0.127]
[1746268064909,0.79776184,96196.0,96195.0,0.127]
[1746268067711,0.79776184,96196.0,96195.0,0.1587]
[1746268074922,0.77776184,96196.0,96195.0,0.1587]
[1746268077630,0.81776184,96196.0,96195.0,0.1587]
[1746268094745,0.77776184,96196.0,96195.0,0.1587]
[1746268096442,0.2088568,96196.0,96195.0,0.757359]
[1746268096827,0.2088568,96196.0,96195.0,2.257359]
[1746268098641,0.2088568,96196.0,96195.0,2.0495]
[1746268101134,0.2088568,96196.0,96195.0,2.0818]
[1746268103339,0.2088568,96196.0,96195.0,2.0518]
[1746268109147,0.2088568,96196.0,96195.0,1.691]
[1746268109443,0.2088568,96196.0,96195.0,2.0518]
[1746268113748,0.2415568,96196.0,96195.0,2.0518]
[1746268114250,0.2415568,96196.0,96195.0,1.691]
[1746268114450,0.2415568,96196.0,96195.0,2.0518]
[1746268121057,0.2415568,96196.0,96195.0,1.691]
[1746268121354,0.2415568,96196.0,96195.0,2.0518]
[1746268124154,0.2720568,96196.0,96195.0,2.0518]
[1746268126359,0.80976184,96196.0,96195.0,1.9878]
[1746268130363,0.61507369,96196.0,96195.0,1.9878]
[1746268130563,0.80976184,96196.0,96195.0,1.9878]
[1746268132263,0.001,96196.0,96195.0,2.215659]
[1746268132461,0.07928503,96202.0,96200.0,0.2078482]
[1746268132462,0.2404476,96201.0,96200.0,0.2078482]
[1746268132661,0.0326,96201.0,96200.0,0.2778482]
[1746268132962,0.240446,96201.0,96200.0,0.2078482]
[1746268133161,0.240446,96201.0,96200.0,0.3658482]
[1746268133564,0.240446,96201.0,96200.0,0.3688482]
[1746268133957,0.240446,96201.0,96200.0,1.0924482]
[1746268134968,0.240446,96201.0,96200.0,1.0524482]
[1746268135362,0.240446,96201.0,96200.0,1.1024482]
[1746268136767,0.58346289,96201.0,96200.0,1.1024482]
[1746268141172,0.58346289,96201.0,96200.0,0.3808482]
[1746268141470,0.58346289,96201.0,96200.0,1.1024482]
[1746268143676,0.58346289,96201.0,96200.0,1.0524482]
[1746268144376,0.58346289,96201.0,96200.0,1.0824482]
[1746268145478,0.58346289,96201.0,96200.0,1.0524482]
[1746268146278,0.58346289,96201.0,96200.0,1.0824482]
[1746268147386,0.58346289,96201.0,96200.0,1.0524482]
[1746268147685,0.58346289,96201.0,96200.0,1.0924482]
[1746268148784,0.58346289,96201.0,96200.0,1.0524482]
[1746268148985,0.58346289,96201.0,96200.0,1.1324482]
[1746268150186,0.58346289,96201.0,96200.0,1.0824482]
[1746268150378,0.58346289,96201.0,96200.0,1.1543482]
[1746268151588,0.58346289,96201.0,96200.0,1.1143482]
[1746268151786,0.58346289,96201.0,96200.0,1.1643482]
[1746268152788,0.58346289,96201.0,96200.0,1.1143482]
[1746268158186,0.61366289,96201.0,96200.0,1.1143482]
[1746268159186,0.80835104,96201.0,96200.0,0.8446]
[1746268160189,0.80835104,96201.0,96200.0,0.7266]
[1746268161488,0.80835104,96201.0,96200.0,0.3658]
[1746268162091,0.92635104,96201.0,96200.0,0.3658]
[1746268163989,0.207872,96189.0,96188.0,0.3608]
[1746268164194,0.74557704,96189.0,96188.0,0.3608]
[1746268164595,0.74557704,96189.0,96188.0,1.8608]
[1746268164998,0.80757704,96189.0,96188.0,1.8608]
[1746268165189,0.80857704,96189.0,96188.0,1.8658]
[1746268165785,0.80857704,96189.0,96188.0,1.8698]
[1746268165990,0.80957704,96189.0,96188.0,1.8698]
[1746268166796,0.80957704,96189.0,96188.0,1.509]
[1746268173691,0.80957704,96189.0,96188.0,1.5399]
[1746268174698,0.80957704,96189.0,96188.0,1.7477741]
[1746268174900,0.80957704,96189.0,96188.0,1.5399]
[1746268176599,0.80957704,96189.0,96188.0,1.7477741]
[1746268184700,0.46656015,96189.0,96188.0,1.7477741]
[1746268184906,0.80957704,96189.0,96188.0,1.7477741]
[1746268192111,0.80957704,96189.0,96188.0,0.3657741]
[1746268192714,0.80957704,96189.0,96188.0,1.8657741]
[1746268193106,0.80957704,96189.0,96188.0,1.7477741]
[1746268207325,0.81957704,96189.0,96188.0,1.7477741]
[1746268211626,0.81957704,96189.0,96188.0,0.2477741]
[1746268212821,0.83001699,96189.0,96188.0,0.2477741]
[1746268214829,0.81957704,96189.0,96188.0,0.2477741]
[1746268216023,0.2078763,96187.0,96186.0,0.0076244]
[1746268216230,0.2078784,96186.0,96185.0,0.00103966]
[1746268216425,0.93848344,96186.0,96185.0,0.00103966]
[1746268216724,0.59546655,96186.0,96185.0,0.00103966]
[1746268217525,0.59646655,96186.0,96185.0,0.00503966]
[1746268218133,0.59346655,96186.0,96185.0,0.00503966]
[1746268218334,0.59346655,96186.0,96185.0,0.01296771]
[1746268219030,0.59446655,96186.0,96185.0,0.01696771]
[1746268219637,0.93748344,96186.0,96185.0,0.01696771]
[1746268232535,0.93748344,96186.0,96185.0,0.00903966]
[1746268233442,0.93748344,96186.0,96185.0,0.03973966]
[1746268236637,0.93748344,96186.0,96185.0,0.07063966]
[1746268238934,0.80748344,96186.0,96185.0,0.11063966]
[1746268240251,0.80748344,96186.0,96185.0,0.07063966]
[1746268247746,0.80748344,96186.0,96185.0,0.27852026]
[1746268247954,0.80748344,96186.0,96185.0,0.07063966]
[1746268250349,0.61279529,96186.0,96185.0,0.07063966]
[1746268250657,0.80748344,96186.0,96185.0,0.07063966]
[1746268255047,0.80748344,96186.0,96185.0,0.03973966]
[1746268258757,0.80748344,96186.0,96185.0,0.24762026]
[1746268259152,0.80748344,96186.0,96185.0,0.03973966]
[1746268259353,0.80748344,96186.0,96185.0,0.24762026]
[1746268259549,0.13215552,96210.0,96185.0,0.52370365]
[1746268259754,0.07308214,96219.0,96218.0,0.2078093]
[1746268259959,0.07308214,96219.0,96218.0,0.6322893]
[1746268260168,0.07308214,96219.0,96218.0,1.1342213]
[1746268260555,0.07308214,96219.0,96218.0,1.1984213]
[1746268261053,0.07808214,96219.0,96218.0,1.1984213]
[1746268261259,0.08208214,96219.0,96218.0,1.1994213]
[1746268263260,0.01,96219.0,96218.0,1.2004213]
[1746268264160,0.01,96219.0,96218.0,1.0964893]
[1746268269761,0.0313,96229.0,96228.0,0.2077877]
[1746268269955,0.0313,96229.0,96228.0,0.6385877]
[1746268270154,0.37431689,96229.0,96228.0,0.7565877]
[1746268270762,0.37431689,96229.0,96228.0,0.8203877]
[1746268271154,0.39231689,96229.0,96228.0,0.8223877]
[1746268271766,0.39231689,96229.0,96228.0,0.7915877]
[1746268272568,0.38931689,96229.0,96228.0,0.7915877]
[1746268273257,0.38731689,96229.0,96228.0,0.7905877]
[1746268273559,0.78979054,96229.0,96228.0,0.119]
[1746268274263,0.78979054,96229.0,96228.0,0.001]
[1746268277168,0.90779054,96229.0,96228.0,0.001]
[1746268277357,0.2077942,96225.0,96224.0,0.3608]
[1746268277661,0.2078223,96212.0,96203.0,0.3608]
[1746268277965,0.2078287,96209.0,96203.0,0.3608]
[1746268278165,0.74553374,96209.0,96203.0,0.3608]
[1746268278361,0.74553374,96209.0,96204.0,0.01559]
[1746268279063,0.74453374,96209.0,96204.0,0.01559]
[1746268279267,0.80553374,96209.0,96204.0,0.01559]
[1746268279768,0.80453374,96209.0,96204.0,0.01559]
[1746268279968,0.80653374,96209.0,96204.0,0.01559]
[1746268280269,0.80953374,96209.0,96204.0,0.01559]
[1746268282354,0.91347374,96209.0,96204.0,0.01559]
[1746268282666,0.2078374,96205.0,96204.0,0.01559]
[1746268282872,0.2078503,96199.0,96198.0,0.00155888]
[1746268283164,0.74555534,96199.0,96198.0,0.00155888]
[1746268283870,0.77685534,96199.0,96198.0,0.00155888]
[1746268284567,0.77885534,96199.0,96198.0,0.00155888]
[1746268285466,0.207859,96195.0,96194.0,0.01559]
[1746268285670,0.74556404,96195.0,96194.0,0.01559]
[1746268285965,0.2078655,96192.0,96191.0,0.3608]
[1746268286160,0.74557054,96192.0,96191.0,0.3608]
[1746268286664,0.74457054,96192.0,96191.0,0.3608]
[1746268288760,0.74457054,96192.0,96191.0,0.3618]
[1746268289063,0.74457054,96192.0,96191.0,0.3818]
[1746268289270,0.74457054,96192.0,96191.0,0.3618]
[1746268297070,0.84853055,96192.0,96191.0,0.001]
[1746268298072,0.96653055,96192.0,96191.0,0.001]
[1746268298470,0.53770504,96181.0,96173.0,0.00768647]
[1746268298662,0.2079109,96172.0,96170.0,0.07122651]
[1746268298868,0.2079109,96172.0,96171.0,0.0519776]
[1746268299175,0.2079109,96172.0,96171.0,0.3259109]
[1746268299569,0.2029109,96172.0,96171.0,0.3259109]
[1746268299768,0.2029109,96172.0,96171.0,0.118]
[1746268300275,0.2029109,96172.0,96171.0,0.1824]
[1746268300468,0.2029109,96172.0,96171.0,0.1864]
[1746268301174,0.2039109,96172.0,96171.0,0.19812078]
[1746268302374,0.2039109,96172.0,96171.0,0.23812078]
[1746268302766,0.2039109,96172.0,96171.0,0.19812078]
[1746268302962,0.2039109,96172.0,96171.0,0.22812078]
[1746268304169,0.2350109,96172.0,96171.0,0.19812078]
[1746268305371,0.2039109,96172.0,96171.0,0.19812078]
[1746268309283,0.2352109,96172.0,96171.0,0.19812078]
[1746268310779,0.2655109,96172.0,96171.0,0.19812078]
[1746268312969,0.2352109,96172.0,96171.0,0.23812078]
[1746268314880,0.2352109,96172.0,96171.0,0.19812078]
[1746268318174,0.2676109,96172.0,96171.0,0.19812078]
[1746268320276,0.2676109,96172.0,96171.0,0.40603168]
[1746268322172,0.3608,96177.0,96174.0,0.0519756]
[1746268322379,0.2598739,96178.0,96177.0,0.2078936]
[1746268322577,0.79757894,96178.0,96177.0,0.3505936]
[1746268322781,0.45456205,96178.0,96177.0,0.2405936]
[1746268323185,0.45456205,96178.0,96177.0,0.3585936]
[1746268323393,0.45456205,96178.0,96177.0,0.3615936]
[1746268323887,0.48586205,96178.0,96177.0,0.3615936]
[1746268324078,0.48686205,96178.0,96177.0,0.3645936]
[1746268326391,0.2608739,96178.0,96177.0,0.3645936]
[1746268326688,0.2608739,96178.0,96177.0,0.4145936]
[1746268326890,0.2598553,96185.0,96182.0,0.0519713]
[1746268327085,0.2598553,96185.0,96184.0,0.2078828]
[1746268327284,0.2598553,96185.0,96184.0,0.3478828]
[1746268327485,0.2923553,96185.0,96184.0,0.14]
[1746268328288,0.2923553,96185.0,96184.0,0.258]
[1746268328490,0.2923553,96185.0,96184.0,0.4658828]
[1746268328990,0.2933553,96185.0,96184.0,0.4658828]
[1746268329791,0.2933553,96185.0,96184.0,0.3258828]
[1746268329987,0.2933553,96185.0,96184.0,0.3858828]
[1746268330200,0.2923553,96185.0,96184.0,0.3278828]
[1746268330393,0.2933553,96185.0,96184.0,0.3898828]
[1746268330785,0.2933553,96185.0,96184.0,0.3298828]
[1746268334193,0.2933553,96185.0,96184.0,0.3798828]
[1746268335393,0.2933553,96185.0,96184.0,0.3298828]
[1746268335695,0.2933553,96185.0,96184.0,0.122]
[1746268335896,0.3256553,96185.0,96184.0,0.122]
[1746268336392,0.3256553,96185.0,96184.0,0.3298828]
[1746268339886,0.3256553,96185.0,96184.0,0.122]
[1746268341992,0.3256553,96185.0,96184.0,0.1535]
[1746268344184,0.86336034,96185.0,96184.0,0.1535]
[1746268351902,0.96732834,96185.0,96184.0,0.122]
[1746268352197,1.44612834,96185.0,96184.0,0.004]
[1746268352499,1.50972834,96185.0,96184.0,0.004]
[1746268353505,1.50972834,96185.0,96178.0,0.00514]
[1746268353506,0.2078936,96179.0,96178.0,0.00514]
[1746268353801,0.2079,96176.0,96175.0,0.15818308]
[1746268353989,0.74560504,96176.0,96175.0,0.15818308]
[1746268354189,0.86360504,96176.0,96175.0,0.15818308]
[1746268354595,0.86060504,96176.0,96175.0,0.15818308]
[1746268354800,0.85760504,96176.0,96175.0,0.15818308]
[1746268355300,0.85760504,96176.0,96175.0,0.16218308]
[1746268356199,0.73960504,96176.0,96175.0,0.16218308]
[1746268356805,0.73960504,96176.0,96175.0,0.16418308]
[1746268356806,0.74060504,96176.0,96175.0,0.16418308]
[1746268357496,0.80490504,96176.0,96175.0,0.16418308]
[1746268358105,0.80490504,96176.0,96175.0,0.006]
[1746268359606,1.16570504,96176.0,96175.0,0.006]
[1746268364705,0.82268815,96176.0,96175.0,0.006]
[1746268364912,1.16570504,96176.0,96175.0,0.006]
[1746268369415,1.32570504,96176.0,96175.0,0.006]
[1746268384341,0.2029,96176.0,96175.0,0.2839022]
[1746268384534,0.2029,96176.0,96175.0,0.6447022]
[1746268384734,0.2029,96176.0,96175.0,0.4368]
[1746268384942,0.2029,96176.0,96175.0,0.3668]
[1746268385141,0.2029,96176.0,96175.0,0.4848]
[1746268385341,0.2029,96176.0,96175.0,0.6927022]
[1746268385948,0.2029,96176.0,96175.0,0.7238022]
[1746268393541,0.5637,96176.0,96175.0,0.1551]
[1746268393748,0.8037,96176.0,96175.0,0.1551]
[1746268394139,1.21131689,96176.0,96175.0,0.1551]
[1746268394540,1.40600504,96176.0,96175.0,0.1551]
[1746268397444,1.40600504,96176.0,96175.0,0.124]
[1746268397647,1.40600504,96176.0,96175.0,0.0678579]
[1746268398346,0.2079173,96168.0,96167.0,0.0311]
[1746268398654,0.3779173,96168.0,96167.0,0.0311]
[1746268399038,0.4739173,96168.0,96167.0,0.0311]
[1746268399249,0.4739173,96168.0,96167.0,0.1491]
[1746268399848,0.4749173,96168.0,96167.0,0.1521]
[1746268400045,0.4430173,96168.0,96167.0,0.1521]
[1746268400246,0.2913173,96168.0,96167.0,0.1521]
[1746268400446,0.2923173,96168.0,96167.0,0.1521]
[1746268401646,0.2599173,96168.0,96167.0,0.1521]
[1746268401845,0.2599173,96168.0,96167.0,0.1842]
[1746268402946,0.2099173,96168.0,96167.0,0.1842]
[1746268403254,0.2999173,96168.0,96167.0,0.1521]
[1746268404153,0.2099173,96168.0,96167.0,0.2421]
[1746268412853,0.2099173,96168.0,96167.0,0.1521]
[1746268413053,0.2410173,96168.0,96167.0,0.1521]
[1746268420564,0.2099173,96168.0,96167.0,0.1521]
[1746268420759,0.2099173,96168.0,96167.0,0.2121]
[1746268421064,0.2099173,96168.0,96167.0,0.1521]
[1746268421267,0.2099173,96168.0,96167.0,0.1844]
[1746268422265,0.2099173,96168.0,96167.0,0.2544]
[1746268424370,0.2099173,96168.0,96167.0,0.1844]
[1746268424570,0.2403173,96168.0,96167.0,0.1844]
[1746268425271,1.13882234,96168.0,96167.0,0.121]
[1746268426264,1.13882234,96168.0,96167.0,0.003]
[1746268427064,1.13882234,96168.0,96167.0,0.121]
[1746268432875,0.2099173,96168.0,96167.0,0.7997195]
[1746268433076,0.2099173,96168.0,96167.0,0.8304195]
[1746268433276,0.2099173,96168.0,96167.0,0.7204195]
[1746268436181,0.2099173,96168.0,96167.0,0.7504195]
[1746268436879,0.2099173,96168.0,96167.0,0.3896195]
[1746268437180,0.2099173,96168.0,96167.0,0.7504195]
[1746268439581,0.2099173,96168.0,96167.0,0.5425]
[1746268439779,0.2099173,96168.0,96167.0,0.1817]
[1746268439969,0.78042234,96168.0,96167.0,0.121]
[1746268440468,1.14122234,96168.0,96167.0,0.121]
[1746268444079,1.14122234,96168.0,96167.0,0.003]
[1746268454285,1.85520635,96168.0,96167.0,1e-07]
[1746268454479,0.2079433,96156.0,96155.0,0.00103998]
[1746268454679,1.17220834,96156.0,96155.0,0.00103998]
[1746268455081,1.41220834,96156.0,96155.0,0.00103998]
[1746268455284,1.23470834,96156.0,96155.0,0.00103998]
[1746268455581,1.33870835,96156.0,96155.0,0.00103998]
[1746268456292,1.33970835,96156.0,96155.0,0.00603998]
[1746268456782,1.34070835,96156.0,96155.0,0.00603998]
[1746268457384,1.71070835,96156.0,96155.0,0.00603998]
[1746268457583,1.34070835,96156.0,96155.0,0.00603998]
[1746268458186,1.45870835,96156.0,96155.0,0.00603998]
[1746268460383,0.2079584,96149.0,96148.0,0.0312]
[1746268460585,0.74566344,96149.0,96148.0,0.0312]
[1746268461595,0.74666344,96149.0,96148.0,0.0312]
[1746268461805,0.74766344,96149.0,96148.0,0.0332]
[1746268463491,0.2099584,96149.0,96148.0,0.1544]
[1746268464095,0.2099584,96149.0,96148.0,0.2724]
[1746268467906,0.2099584,96149.0,96148.0,0.4803606]
[1746268469904,0.2099584,96149.0,96148.0,0.2724]
[1746268470301,0.2099584,96149.0,96148.0,0.1824]
[1746268474311,0.2099584,96149.0,96148.0,0.4803606]
[1746268475615,0.002,96149.0,96148.0,0.4803606]
[1746268478015,0.2099584,96149.0,96148.0,0.4803606]
[1746268479015,0.002,96149.0,96148.0,0.4803606]
[1746268481018,0.2099584,96149.0,96148.0,0.4803606]
[1746268481616,0.002,96149.0,96148.0,0.4803606]
[1746268486010,0.2099584,96149.0,96148.0,0.4803606]
[1746268491509,0.2416584,96149.0,96148.0,0.4803606]
[1746268494727,0.2416584,96149.0,96148.0,0.63854368]
[1746268498530,0.2416584,96149.0,96148.0,0.4803606]
[1746268506326,0.2416584,96149.0,96148.0,0.3903606]
[1746268507021,0.0337,96149.0,96148.0,0.3903606]
[1746268507528,0.0657,96149.0,96148.0,0.3903606]
[1746268507922,0.034,96149.0,96148.0,0.3903606]
[1746268508539,0.2419584,96149.0,96148.0,0.3903606]
[1746268508735,0.034,96149.0,96148.0,0.3903606]
[1746268509438,0.034,96149.0,96148.0,0.4103606]
[1746268509633,0.2419584,96149.0,96148.0,0.4103606]
[1746268510641,0.034,96149.0,96148.0,0.4103606]